bitfinex/quotes_BTCUSD_20240719
["timestamp","ask_amount","ask_price","bid_price","bid_amount"]
[1721396286648,0.00183,64727.0,64726.0,1.73882825]
[1721396287060,0.00083,64727.0,64726.0,1.73881021]
[1721396287282,0.00083,64727.0,64726.0,2.30431391]
[1721396287960,0.01483,64727.0,64726.0,1.99531991]
[1721396289458,0.01483,64727.0,64726.0,2.30431391]
[1721396289685,0.01483,64727.0,64726.0,3.46763204]
[1721396289901,0.00083,64727.0,64726.0,3.33937781]
[1721396290097,0.00083,64727.0,64726.0,4.96762548]
[1721396290306,0.00183,64727.0,64726.0,5.43991948]
[1721396290518,0.00183,64727.0,64726.0,5.45829888]
[1721396290731,0.00183,64727.0,64726.0,4.08300488]
[1721396290940,0.00283,64727.0,64726.0,4.06462548]
[1721396291141,0.00283,64727.0,64726.0,4.09149969]
[1721396291357,0.00283,64727.0,64726.0,4.07312148]
[1721396291790,0.00283,64727.0,64726.0,4.0915]
[1721396292004,0.00283,64727.0,64726.0,4.07312148]
[1721396292434,0.00283,64727.0,64726.0,4.09150032]
[1721396292643,0.00283,64727.0,64726.0,4.27780032]
[1721396292862,0.00283,64727.0,64726.0,4.94450032]
[1721396293068,0.00283,64727.0,64726.0,4.79787381]
[1721396293283,0.00283,64727.0,64726.0,4.09611798]
[1721396295183,0.00283,64727.0,64726.0,4.11449205]
[1721396295384,0.00283,64727.0,64726.0,4.09611798]
[1721396295609,0.00283,64727.0,64726.0,2.26412398]
[1721396295843,0.00283,64727.0,64726.0,1.62061585]
[1721396296115,0.00283,64727.0,64726.0,1.92962837]
[1721396296358,0.00283,64727.0,64726.0,2.3989321]
[1721396296592,0.00283,64727.0,64726.0,3.5925261]
[1721396296831,0.00283,64727.0,64726.0,2.5395321]
[1721396297075,0.00283,64727.0,64726.0,2.5625321]
[1721396297291,0.00283,64727.0,64726.0,2.6625321]
[1721396297507,0.00083,64727.0,64726.0,2.6625321]
[1721396297713,0.00083,64727.0,64726.0,4.1625321]
[1721396297955,0.00083,64727.0,64726.0,4.1675321]
[1721396298153,0.00083,64727.0,64726.0,4.4715261]
[1721396298362,0.00083,64727.0,64726.0,5.3015261]
[1721396298585,0.00183,64727.0,64726.0,5.3125261]
[1721396299071,0.00183,64727.0,64726.0,5.00350523]
[1721396299313,0.00183,64727.0,64726.0,5.16680523]
[1721396299777,0.00183,64727.0,64726.0,5.66815297]
[1721396300018,0.002,64729.0,64728.0,1.553732]
[1721396300243,0.002,64729.0,64728.0,3.56817282]
[1721396300459,0.0084965,64733.0,64732.0,1.553647]
[1721396300684,0.0084965,64733.0,64732.0,3.44089403]
[1721396300924,0.00134413,64754.0,64732.0,3.44089403]
[1721396300925,0.46304871,64765.0,64764.0,0.154406]
[1721396301148,0.03138303,64785.0,64764.0,0.154406]
[1721396301149,0.04601069,64785.0,64764.0,0.15428186]
[1721396301380,0.0229557,64784.0,64765.0,0.12819625]
[1721396301596,0.002,64789.0,64779.0,0.15426912]
[1721396301597,0.0229557,64783.0,64779.0,0.15426912]
[1721396301815,0.308699,64788.0,64770.0,0.308781]
[1721396301816,9.988e-05,64779.0,64776.0,0.308753]
[1721396302015,0.46308074,64788.0,64774.0,0.308761]
[1721396302016,0.154354,64786.0,64774.0,0.308761]
[1721396302228,0.02296839,64785.0,64764.0,0.15428186]
[1721396302439,0.02296839,64785.0,64768.0,0.30879]
[1721396302440,9.988e-05,64778.0,64768.0,0.30879]
[1721396302662,9.988e-05,64778.0,64777.0,0.463126]
[1721396302873,9.988e-05,64778.0,64777.0,0.771877]
[1721396303104,9.988e-05,64778.0,64777.0,1.080628]
[1721396303948,0.01109988,64778.0,64777.0,1.081628]
[1721396304591,0.011,64778.0,64777.0,1.08152812]
[1721396304795,0.005,64778.0,64777.0,1.08052812]
[1721396305261,0.005,64778.0,64762.0,0.0817]
[1721396305262,0.01,64778.0,64770.0,0.308784]
[1721396305472,0.01,64778.0,64764.0,0.07717479]
[1721396305473,0.30008174,64777.0,64765.0,0.002794]
[1721396305683,0.1457,64777.0,64776.0,0.154378]
[1721396306099,0.1457,64777.0,64776.0,0.463134]
[1721396306309,0.1457,64777.0,64776.0,0.77189]
[1721396306530,0.0818,64777.0,64776.0,1.080646]
[1721396306766,0.066,64784.0,64783.0,0.463083]
[1721396307004,0.066,64784.0,64783.0,0.154361]
[1721396307214,0.002,64778.0,64777.0,0.154375]
[1721396307428,0.002,64778.0,64756.0,0.01835759]
[1721396307429,0.15638174,64778.0,64756.0,0.01835759]
[1721396307636,0.15638174,64778.0,64750.0,0.14037479]
[1721396307637,0.0813,64775.0,64759.0,0.308837]
[1721396307864,0.24268437,64778.0,64750.0,0.07717479]
[1721396307865,0.1429,64767.0,64753.0,0.308862]
[1721396308081,0.1429,64767.0,64751.0,0.002794]
[1721396308082,0.154413,64762.0,64751.0,0.002794]
[1721396308318,0.46318674,64766.0,64744.0,0.308907]
[1721396308319,0.1429,64760.0,64744.0,0.308907]
[1721396308531,0.46321874,64759.0,64742.0,0.308918]
[1721396308740,0.46321874,64759.0,64743.0,0.07717479]
[1721396308741,0.15438174,64759.0,64743.0,0.07717479]
[1721396308950,0.15438174,64759.0,64737.0,0.002794]
[1721396308951,0.02311468,64758.0,64737.0,0.002794]
[1721396309171,0.08,64742.0,64728.0,0.07717479]
[1721396309389,0.08,64742.0,64735.0,0.07717479]
[1721396309616,0.08,64742.0,64741.0,0.463384]
[1721396310069,0.0635,64748.0,64747.0,1.081129]
[1721396310286,0.06252841,64748.0,64747.0,0.772235]
[1721396310518,0.083,64750.0,64749.0,0.463327]
[1721396310717,0.083,64750.0,64749.0,0.772212]
[1721396310932,0.014,64767.0,64749.0,0.308885]
[1721396311140,1.25204871,64770.0,64744.0,0.07717479]
[1721396311141,0.308809,64765.0,64744.0,0.07717479]
[1721396311352,0.154423,64758.0,64746.0,0.308899]
[1721396311568,0.15438174,64757.0,64747.0,0.001]
[1721396311809,0.154427,64756.0,64747.0,0.155446]
[1721396312032,0.46323074,64757.0,64747.0,0.001]
[1721396312033,0.15438174,64755.0,64747.0,0.001]
[1721396312262,0.0794,64754.0,64747.0,0.001]
[1721396312466,0.15438174,64753.0,64736.0,0.308945]
[1721396312676,0.33167977,64755.0,64729.0,0.002794]
[1721396312677,0.15438174,64747.0,64729.0,0.002794]
[1721396312884,0.15438174,64747.0,64720.0,0.07717479]
[1721396312885,0.1633,64744.0,64725.0,0.002794]
[1721396313102,0.17764276,64743.0,64727.0,0.07717479]
[1721396313348,0.17764276,64743.0,64733.0,0.308959]
[1721396313349,0.0625,64742.0,64733.0,0.308959]
[1721396313593,0.0625,64742.0,64739.0,0.154465]
[1721396313808,0.0625,64742.0,64734.0,0.07717479]
[1721396314015,0.0625,64742.0,64741.0,0.154461]
[1721396314226,0.0625,64742.0,64741.0,0.463384]
[1721396314440,0.04599346,64761.0,64734.0,0.07717479]
[1721396314441,0.0617,64749.0,64734.0,0.07717479]
[1721396314670,0.014,64757.0,64756.0,0.463276]
[1721396314904,0.0766,64766.0,64765.0,0.154404]
[1721396315137,0.0766,64766.0,64765.0,0.77202]
[1721396315371,0.0766,64766.0,64765.0,1.080828]
[1721396315629,0.0766,64766.0,64765.0,0.463212]
[1721396315863,0.0766,64766.0,64748.0,0.38606379]
[1721396316107,0.0766,64766.0,64749.0,0.28260254]
[1721396316341,0.0766,64766.0,64750.0,0.002794]
[1721396316563,0.0766,64766.0,64749.0,0.15438174]
[1721396316564,0.09073,64766.0,64749.0,0.07717479]
[1721396316788,0.09073,64766.0,64760.0,0.154415]
[1721396317031,0.0766,64766.0,64759.0,0.308835]
[1721396317261,0.0766,64766.0,64737.0,0.002794]
[1721396317262,0.154421,64758.0,64737.0,0.002794]
[1721396317479,0.15438174,64757.0,64745.0,0.308901]
[1721396317687,0.15438174,64757.0,64741.0,0.07717479]
[1721396317896,0.0664,64764.0,64757.0,0.154422]
[1721396318105,0.02314622,64763.0,64749.0,0.07717479]
[1721396318320,0.0664,64764.0,64763.0,0.154409]
[1721396318519,0.04601777,64777.0,64765.0,0.463212]
[1721396318520,0.0664,64770.0,64765.0,0.463212]
[1721396318728,0.0816,64766.0,64765.0,0.464212]
[1721396318953,0.005,64766.0,64765.0,1.081828]
[1721396319205,0.005,64766.0,64765.0,0.77302]
[1721396319800,0.005,64766.0,64765.0,0.464212]
[1721396320001,0.0664,64770.0,64745.0,0.081]
[1721396320204,0.0664,64770.0,64755.0,0.308854]
[1721396320205,0.02311733,64769.0,64755.0,0.308854]
[1721396320404,0.17751233,64769.0,64762.0,0.15441]
[1721396320612,0.17751233,64769.0,64738.0,0.308937]
[1721396320613,0.17755014,64768.0,64738.0,0.308937]
[1721396320881,0.30881,64765.0,64738.0,0.308937]
[1721396321068,0.17755014,64764.0,64759.0,0.154417]
[1721396321276,0.15438174,64765.0,64757.0,0.308843]
[1721396321488,0.02313178,64764.0,64759.0,0.154418]
[1721396321689,0.02313178,64764.0,64760.0,0.154414]
[1721396321931,0.02313178,64764.0,64746.0,0.308895]
[1721396321932,0.15438174,64763.0,64746.0,0.308895]
[1721396322149,0.15438174,64763.0,64734.0,0.07717479]
[1721396322150,0.16693178,64762.0,64734.0,0.07717479]
[1721396322377,0.154432,64754.0,64746.0,0.154448]
[1721396322577,0.154432,64754.0,64734.0,0.07717479]
[1721396322578,0.15438174,64753.0,64734.0,0.07717479]
[1721396322793,0.15438174,64753.0,64747.0,0.154446]
[1721396323008,0.15438174,64753.0,64745.0,0.308901]
[1721396323224,0.3088,64767.0,64713.0,0.07717479]
[1721396323225,0.04608348,64761.0,64754.0,0.154428]
[1721396323486,0.1438,64762.0,64753.0,0.308863]
[1721396323696,0.1438,64762.0,64761.0,0.154413]
[1721396324113,0.1438,64762.0,64750.0,0.07717479]
[1721396324324,0.1438,64762.0,64756.0,0.154424]
[1721396324529,0.1438,64762.0,64752.0,0.308868]
[1721396324743,0.154415,64761.0,64752.0,0.308868]
[1721396324947,0.1438,64762.0,64752.0,0.308868]
[1721396325151,0.1438,64762.0,64753.0,0.308865]
[1721396325364,0.1438,64762.0,64757.0,0.07717479]
[1721396325582,0.1438,64762.0,64761.0,0.46324]
[1721396325791,0.1438,64762.0,64761.0,0.154413]
[1721396326034,0.1518,64762.0,64761.0,0.001]
[1721396326246,0.49156886,64762.0,64761.0,0.001]
[1721396326455,1.12516563,64762.0,64761.0,0.001]
[1721396326661,1.12516563,64762.0,64752.0,0.001]
[1721396326662,0.32915786,64762.0,64752.0,0.001]
[1721396326896,0.33177186,64761.0,64752.0,0.001]
[1721396327104,0.02297612,64760.0,64755.0,0.154427]
[1721396327378,0.02297612,64760.0,64755.0,0.154426]
[1721396327790,0.02297612,64760.0,64754.0,0.30886]
[1721396328003,0.02297612,64760.0,64755.0,0.154427]
[1721396328223,0.02323772,64759.0,64755.0,0.154427]
[1721396328443,0.15438174,64761.0,64753.0,0.308864]
[1721396328717,0.02321745,64760.0,64753.0,0.154432]
[1721396328960,0.02321745,64760.0,64754.0,0.154429]
[1721396329425,0.03721745,64760.0,64750.0,0.07717479]
[1721396329670,0.014,64760.0,64759.0,0.154418]
[1721396329896,0.014,64760.0,64759.0,0.772092]
[1721396330123,0.014,64761.0,64760.0,0.463248]
[1721396330331,0.014,64761.0,64758.0,0.154419]
[1721396330557,0.014,64760.0,64759.0,0.154416]
[1721396330823,0.014,64760.0,64750.0,0.07717479]
[1721396330824,0.014,64760.0,64751.0,0.308873]
[1721396331047,0.014,64760.0,64758.0,0.154419]
[1721396331291,0.014,64760.0,64756.0,0.154425]
[1721396331526,0.014,64760.0,64757.0,0.07717479]
[1721396331758,0.1438,64762.0,64757.0,0.07717479]
[1721396331973,0.15438174,64761.0,64750.0,0.38605379]
[1721396332206,0.005,64760.0,64751.0,0.154436]
[1721396332472,0.154419,64759.0,64751.0,0.154436]
[1721396332698,0.17762382,64758.0,64750.0,0.07717479]
[1721396332918,0.06512342,64760.0,64757.0,0.07717479]
[1721396332919,0.15438174,64759.0,64757.0,0.07717479]
[1721396333129,0.02321681,64758.0,64757.0,0.07717479]
[1721396334182,0.15438174,64759.0,64757.0,0.07717479]
[1721396334342,0.02326718,64758.0,64757.0,0.07717479]
[1721396335217,0.17764892,64758.0,64750.0,0.07717479]
[1721396335361,0.17764892,64757.0,64750.0,0.07717479]
[1721396335561,0.06014114,64759.0,64751.0,0.308871]
[1721396335562,0.02326718,64756.0,64751.0,0.308871]
[1721396335764,0.014,64759.0,64754.0,0.308858]
[1721396335961,0.014,64759.0,64758.0,0.23159579]
[1721396336402,0.03721524,64759.0,64758.0,0.54043779]
[1721396336625,0.03721524,64759.0,64758.0,1.15812179]
[1721396336821,0.014,64759.0,64758.0,1.15812179]
[1721396337026,0.12674114,64770.0,64759.0,0.308835]
[1721396337226,0.12674114,64770.0,64767.0,0.154398]
[1721396337227,0.12673785,64770.0,64767.0,0.154398]
[1721396337448,0.02320092,64769.0,64767.0,0.154399]
[1721396337696,0.0806,64770.0,64765.0,0.23157879]
[1721396337697,0.02315172,64768.0,64765.0,0.23157879]
[1721396337888,0.02315172,64767.0,64766.0,0.77201]
[1721396338135,0.46370885,64773.0,64765.0,0.38597879]
[1721396338136,0.3945,64773.0,64765.0,0.38597879]
[1721396338382,0.02314877,64772.0,64771.0,0.46317]
[1721396338541,0.02314877,64772.0,64771.0,0.15439]
[1721396338742,0.02314877,64772.0,64767.0,0.308798]
[1721396339001,0.02314877,64772.0,64770.0,0.154391]
[1721396339202,0.02314877,64772.0,64767.0,0.154398]
[1721396339455,0.007,64767.0,64766.0,0.463203]
[1721396339682,0.007,64767.0,64760.0,0.308829]
[1721396339683,0.03014877,64767.0,64760.0,0.308829]
[1721396339890,0.02306414,64766.0,64764.0,0.154405]
[1721396340102,0.02306414,64766.0,64760.0,0.308829]
[1721396340322,0.007,64767.0,64761.0,0.308824]
[1721396340529,0.007,64767.0,64754.0,0.385659]
[1721396340530,0.02306563,64766.0,64765.0,0.23157879]
[1721396340989,0.02306563,64766.0,64765.0,0.38598279]
[1721396341210,0.46370233,64773.0,64766.0,0.308803]
[1721396341211,0.44063488,64773.0,64766.0,0.308803]
[1721396341426,0.02304974,64772.0,64766.0,0.308803]
[1721396341646,0.02304974,64772.0,64767.0,0.308795]
[1721396341865,0.06918462,64772.0,64770.0,0.154392]
[1721396342076,0.02304974,64771.0,64770.0,0.154392]
[1721396342318,0.02304974,64771.0,64770.0,0.77196]
[1721396342533,0.04613176,64780.0,64765.0,0.07717479]
[1721396342760,0.04613176,64781.0,64780.0,0.154368]
[1721396342972,0.04613176,64781.0,64774.0,0.07717479]
[1721396342973,0.02313176,64782.0,64781.0,0.463098]
[1721396343187,0.02306976,64782.0,64775.0,0.308757]
[1721396343402,0.06919765,64784.0,64780.0,0.154367]
[1721396343403,0.02306976,64781.0,64780.0,0.154367]
[1721396343617,0.02306976,64783.0,64774.0,0.07717479]
[1721396343830,0.02316038,64783.0,64782.0,0.154363]
[1721396344303,0.02316038,64783.0,64778.0,0.308743]
[1721396344515,0.02316038,64782.0,64781.0,0.154365]
[1721396344735,0.0651,64786.0,64774.0,0.07717479]
[1721396344736,0.02316038,64785.0,64779.0,0.308738]
[1721396344942,0.02321949,64785.0,64783.0,0.15436]
[1721396345153,0.02321949,64785.0,64782.0,0.308724]
[1721396345619,0.02321869,64784.0,64783.0,0.463081]
[1721396345828,0.02327462,64784.0,64783.0,0.308719]
[1721396346052,0.02327462,64784.0,64783.0,0.308722]
[1721396346487,0.02327462,64784.0,64783.0,0.463083]
[1721396346940,0.02327462,64784.0,64783.0,0.771805]
[1721396347154,0.013,64785.0,64784.0,0.463077]
[1721396347379,0.013,64785.0,64784.0,1.60552961]
[1721396347822,0.013,64785.0,64784.0,1.68652961]
[1721396348027,0.013,64785.0,64784.0,1.81469193]
[1721396348248,0.013,64785.0,64784.0,1.68652961]
[1721396348467,0.002,64789.0,64788.0,1.080446]
[1721396349329,0.002,64789.0,64788.0,1.20859376]
[1721396349544,0.002,64789.0,64788.0,1.080446]
[1721396350850,0.004,64789.0,64788.0,1.080446]
[1721396351942,0.004,64789.0,64788.0,1.85222574]
[1721396352165,0.002,64789.0,64788.0,1.67167291]
[1721396352376,0.003,64789.0,64788.0,1.67167291]
[1721396352806,0.003,64789.0,64788.0,3.17167291]
[1721396353015,0.003,64789.0,64788.0,1.54352674]
[1721396353442,0.002,64789.0,64788.0,1.54352674]
[1721396353653,0.003,64789.0,64788.0,1.54352674]
[1721396353865,0.003,64789.0,64788.0,0.154349]
[1721396354103,0.003,64789.0,64774.0,0.07717479]
[1721396354104,0.15738174,64789.0,64771.0,0.0637]
[1721396354320,0.003,64789.0,64788.0,0.54022279]
[1721396354576,0.003,64789.0,64788.0,0.84892179]
[1721396355005,0.003,64789.0,64787.0,0.154351]
[1721396355217,0.003,64789.0,64788.0,0.154349]
[1721396355450,0.002,64789.0,64788.0,0.154349]
[1721396355656,0.002,64789.0,64788.0,0.463048]
[1721396355861,0.002,64789.0,64788.0,0.771747]
[1721396355862,0.012,64789.0,64788.0,0.771747]
[1721396356273,0.026,64789.0,64788.0,0.771747]
[1721396356680,0.002,64789.0,64788.0,0.771747]
[1721396357112,0.40953979,64811.0,64788.0,0.771747]
[1721396357113,0.00218628,64809.0,64808.0,1.08011]
[1721396357335,0.00218628,64809.0,64808.0,1.96310443]
[1721396357553,0.00834,64825.0,64808.0,1.96310443]
[1721396357554,0.00834,64825.0,64819.0,0.916477]
[1721396357772,0.00834,64825.0,64819.0,1.225028]
[1721396357999,0.00834,64825.0,64819.0,1.35315421]
[1721396358213,0.002,64829.0,64819.0,1.35315421]
[1721396358214,0.002,64829.0,64819.0,0.59997574]
[1721396358473,0.11492407,64860.0,64819.0,0.59997574]
[1721396358474,0.00833,64854.0,64848.0,0.14970486]
[1721396358691,0.00833,64854.0,64828.0,0.138]
[1721396358692,0.063,64850.0,64829.0,0.002794]
[1721396358904,0.063,64850.0,64831.0,0.154245]
[1721396359114,0.063,64850.0,64816.0,0.32685427]
[1721396359115,0.00833,64854.0,64821.0,0.15427]
[1721396359116,0.0653,64847.0,64821.0,0.15427]
[1721396359333,0.7884,64848.0,64822.0,0.002794]
[1721396359335,0.15438174,64842.0,64822.0,0.002794]
[1721396359548,0.42948174,64842.0,64821.0,0.07717479]
[1721396359771,0.308457,64839.0,64827.0,0.154255]
[1721396359983,0.308457,64839.0,64819.0,0.308549]
[1721396359984,0.15438174,64838.0,64813.0,0.07717479]
[1721396360196,0.15438174,64838.0,64828.0,0.154252]
[1721396360420,0.15438174,64838.0,64827.0,0.154255]
[1721396360658,0.23687253,64837.0,64827.0,0.154255]
[1721396360874,0.308453,64840.0,64822.0,0.001]
[1721396360875,0.15438174,64836.0,64822.0,0.001]
[1721396361512,0.15424,64834.0,64825.0,0.154261]
[1721396361748,0.15438174,64833.0,64822.0,0.001]
[1721396361962,0.01543817,64832.0,64822.0,0.001]
[1721396362175,0.15438174,64831.0,64825.0,0.154259]
[1721396362412,0.15438174,64831.0,64823.0,0.30853]
[1721396362622,0.15438174,64831.0,64826.0,0.154258]
[1721396362868,0.15438174,64831.0,64822.0,0.001]
[1721396363142,0.15438174,64831.0,64823.0,0.154265]
[1721396363408,0.154257,64827.0,64816.0,0.308565]
[1721396363750,0.30864074,64826.0,64813.0,0.308575]
[1721396363900,0.0642,64825.0,64818.0,0.154278]
[1721396364112,0.0642,64825.0,64797.0,0.0605]
[1721396364113,0.23728174,64824.0,64797.0,0.0605]
[1721396364323,0.308533,64823.0,64812.0,0.154291]
[1721396364531,0.154271,64821.0,64813.0,0.154289]
[1721396364744,0.42789637,64823.0,64790.0,0.0781]
[1721396364745,0.15438174,64820.0,64790.0,0.0781]
[1721396365026,0.30856,64818.0,64799.0,0.07717479]
[1721396365249,0.0829,64824.0,64790.0,0.0781]
[1721396365250,0.308577,64814.0,64790.0,0.0781]
[1721396365472,0.20067761,64813.0,64793.0,0.002794]
[1721396365714,0.20067761,64813.0,64789.0,0.07717479]
[1721396365715,0.0632,64812.0,64789.0,0.07717479]
[1721396365960,0.15438174,64811.0,64796.0,0.07717479]
[1721396366213,0.15438174,64811.0,64805.0,0.154308]
[1721396366466,0.1,64823.0,64803.0,0.07717479]
[1721396366468,0.0632,64816.0,64810.0,0.07717479]
[1721396366712,0.0969,64824.0,64810.0,0.07717479]
[1721396366964,0.0969,64824.0,64817.0,0.07717479]
[1721396367200,0.0969,64824.0,64823.0,0.462798]
[1721396367201,0.014,64824.0,64823.0,0.462798]
[1721396367444,0.014,64824.0,64823.0,0.61717974]
[1721396367674,0.0012254,64863.0,64823.0,0.61717974]
[1721396367675,0.0662,64851.0,64835.0,0.771187]
[1721396367888,0.0662,64851.0,64835.0,0.89929193]
[1721396367889,0.07541823,64851.0,64835.0,0.89929193]
[1721396368099,0.0662,64851.0,64835.0,1.20776693]
[1721396368366,0.0825,64853.0,64835.0,1.42800495]
[1721396368611,0.0602,64858.0,64835.0,1.73647995]
[1721396368853,0.0602,64858.0,64835.0,1.73645924]
[1721396369088,0.0012254,64863.0,64835.0,1.73645924]
[1721396369325,0.0012254,64863.0,64835.0,1.42798424]
[1721396369584,0.308354,64861.0,64835.0,1.42798424]
[1721396370056,0.0012254,64863.0,64835.0,1.42898424]
[1721396370296,0.3139,64836.0,64835.0,1.42898424]
[1721396370731,0.3149,64836.0,64835.0,1.43398424]
[1721396370982,0.3069,64836.0,64835.0,1.43298424]
[1721396371208,0.3069,64836.0,64835.0,1.43299883]
[1721396371462,0.3069,64836.0,64835.0,1.21271709]
[1721396371696,0.3059,64836.0,64835.0,1.20771709]
[1721396372181,0.30673,64836.0,64835.0,1.20771709]
[1721396372412,0.30673,64836.0,64835.0,1.36209883]
[1721396372619,0.30673,64836.0,64835.0,1.20771709]
[1721396372831,0.30673,64836.0,64835.0,1.36209883]
[1721396373683,0.30673,64836.0,64835.0,1.67057383]
[1721396374097,0.30673,64836.0,64835.0,1.54251874]
[1721396374301,0.30773,64836.0,64835.0,1.67556348]
[1721396374718,0.30673,64836.0,64835.0,1.67056348]
[1721396375204,0.30773,64836.0,64835.0,1.67656348]
[1721396375621,0.30773,64836.0,64835.0,1.75936348]
[1721396375837,0.30773,64836.0,64835.0,1.9514306]
[1721396376050,0.30773,64836.0,64835.0,1.75936348]
[1721396376270,0.30773,64836.0,64835.0,1.83653827]
[1721396376483,0.30773,64836.0,64835.0,1.8548247]
[1721396376691,0.30773,64836.0,64835.0,1.83653827]
[1721396376906,0.27683,64836.0,64835.0,1.83653827]
[1721396377109,0.27683,64836.0,64835.0,1.83654567]
[1721396378562,0.27683,64836.0,64835.0,1.52807067]
[1721396379016,0.27683,64836.0,64835.0,1.83654567]
[1721396379255,0.27683,64836.0,64835.0,1.52807067]
[1721396379471,0.27683,64836.0,64835.0,1.83654567]
[1721396379685,0.27683,64836.0,64835.0,1.52807272]
[1721396380144,0.27683,64836.0,64835.0,1.52807324]
[1721396380580,0.0781,64864.0,64835.0,1.52807324]
[1721396380581,0.23285082,64872.0,64841.0,0.308444]
[1721396380786,0.23285082,64872.0,64835.0,0.44841124]
[1721396380787,0.308356,64860.0,64848.0,0.07717479]
[1721396381019,0.15438174,64859.0,64850.0,0.1542]
[1721396381282,0.15438174,64859.0,64847.0,0.308414]
[1721396381535,0.15438174,64859.0,64836.0,0.002794]
[1721396381536,0.154169,64864.0,64853.0,0.308388]
[1721396381792,0.30855074,64864.0,64854.0,0.154191]
[1721396382025,0.308347,64862.0,64847.0,0.308414]
[1721396382271,0.014,64859.0,64850.0,0.001]
[1721396382511,0.014,64859.0,64845.0,0.07717479]
[1721396382512,0.15438174,64863.0,64855.0,0.154189]
[1721396382781,0.154178,64860.0,64851.0,0.154199]
[1721396383005,0.154178,64860.0,64845.0,0.07717479]
[1721396383006,0.15438174,64859.0,64846.0,0.308421]
[1721396383236,0.15438174,64859.0,64849.0,0.154203]
[1721396383441,0.30856174,64859.0,64849.0,0.154204]
[1721396383650,0.215283,64858.0,64849.0,0.154204]
[1721396383873,0.42948174,64857.0,64835.0,0.0828]
[1721396384092,0.0611,64858.0,64836.0,0.12806794]
[1721396384093,0.25438174,64856.0,64836.0,0.12806794]
[1721396384345,0.25438174,64856.0,64832.0,0.46304871]
[1721396384346,0.154231,64838.0,64832.0,0.46304871]
[1721396384643,0.154231,64838.0,64827.0,0.308509]
[1721396384644,0.0632,64838.0,64827.0,0.154256]
[1721396384885,0.0632,64838.0,64828.0,0.12809193]
[1721396385150,0.0632,64844.0,64835.0,0.001]
[1721396385427,0.0632,64844.0,64836.0,0.12808055]
[1721396385428,0.21758174,64844.0,64836.0,0.12808055]
[1721396385624,0.21758174,64844.0,64837.0,0.12808055]
[1721396385625,0.15438174,64843.0,64837.0,0.12808055]
[1721396385876,0.0632,64844.0,64838.0,0.12808867]
[1721396386118,0.15438174,64843.0,64829.0,0.3085]
[1721396386359,0.15438174,64843.0,64825.0,0.07717479]
[1721396386360,0.15438174,64843.0,64830.0,0.12808445]
[1721396386595,0.15438174,64843.0,64825.0,0.07717479]
[1721396386596,0.009,64838.0,64832.0,0.001]
[1721396386836,0.16338174,64838.0,64833.0,0.12808445]
[1721396387070,0.16338174,64838.0,64832.0,0.001]
[1721396387071,0.00243,64834.0,64832.0,0.001]
[1721396387317,0.00243,64834.0,64833.0,0.20526535]
[1721396388046,0.00243,64834.0,64833.0,0.12809056]
[1721396388297,0.154242,64833.0,64826.0,0.002794]
[1721396388602,0.00243,64834.0,64827.0,0.12810372]
[1721396388603,0.15438174,64832.0,64827.0,0.12810372]
[1721396388837,0.15438174,64832.0,64824.0,0.07717479]
[1721396389077,0.15438174,64832.0,64825.0,0.12810897]
[1721396389321,0.15438174,64832.0,64826.0,0.002794]
[1721396389576,0.15438174,64832.0,64817.0,0.07717479]
[1721396389577,0.0652,64831.0,64817.0,0.07717479]
[1721396389810,0.15438174,64830.0,64818.0,0.12811586]
[1721396390065,0.308524,64825.0,64819.0,0.12811586]
[1721396390311,0.154273,64820.0,64817.0,0.07717479]
[1721396390621,0.154273,64820.0,64810.0,0.23147079]
[1721396390622,0.15438174,64819.0,64810.0,0.07717479]
[1721396390881,0.05656847,64829.0,64818.0,0.07717479]
[1721396391272,0.00243,64834.0,64830.0,0.07717479]
[1721396391276,0.00243,64834.0,64832.0,0.154243]
[1721396391479,0.00243,64834.0,64830.0,0.07717479]
[1721396391694,0.00243,64834.0,64832.0,0.308489]
[1721396391887,0.00243,64834.0,64833.0,0.002794]
[1721396392109,0.00243,64834.0,64830.0,0.07717479]
[1721396392322,0.00243,64834.0,64833.0,0.154242]
[1721396392535,0.00243,64834.0,64833.0,0.28232973]
[1721396392788,0.00243,64834.0,64833.0,0.89929773]
[1721396393203,0.01643,64834.0,64833.0,1.67064747]
[1721396393458,0.01643,64834.0,64833.0,1.69527268]
[1721396394495,0.01643,64834.0,64833.0,1.73772056]
[1721396394767,0.01643,64834.0,64833.0,1.69527268]
[1721396395042,0.01643,64834.0,64833.0,1.38673809]
[1721396395281,0.01643,64834.0,64833.0,1.69522209]
[1721396395839,0.01643,64834.0,64833.0,0.73178454]
[1721396396068,0.01643,64834.0,64833.0,0.28230054]
[1721396396069,0.00243,64834.0,64833.0,0.28230054]
[1721396396283,0.00243,64834.0,64833.0,0.59078454]
[1721396396493,0.01643,64834.0,64833.0,0.59078454]
[1721396396702,0.00243,64834.0,64833.0,1.20775254]
[1721396397152,0.00343,64834.0,64833.0,1.20775254]
[1721396397368,0.00343,64834.0,64833.0,0.89926854]
[1721396397577,0.00343,64834.0,64833.0,1.03916854]
[1721396397783,0.00443,64834.0,64833.0,1.34765254]
[1721396397990,0.00243,64834.0,64833.0,1.34766364]
[1721396398418,0.00243,64834.0,64833.0,1.7124339]
[1721396398688,0.00243,64834.0,64833.0,1.69414382]
[1721396398925,0.00243,64834.0,64833.0,1.53976208]
[1721396399185,0.00243,64834.0,64833.0,1.2495594]
[1721396399424,0.00343,64834.0,64833.0,1.23127476]
[1721396399652,0.00343,64834.0,64833.0,1.53975876]
[1721396399888,0.00343,64834.0,64833.0,1.34766364]
[1721396400124,0.00343,64834.0,64833.0,0.89927964]
[1721396400601,0.00343,64834.0,64833.0,1.41813479]
[1721396400871,0.00443,64834.0,64833.0,1.55423309]
[1721396401106,0.00343,64834.0,64833.0,1.55423309]
[1721396401347,0.00443,64834.0,64833.0,1.55423309]
[1721396401835,0.00443,64834.0,64833.0,1.39985135]
[1721396402119,0.00443,64834.0,64833.0,1.09136735]
[1721396402374,0.00443,64834.0,64833.0,0.28230494]